{"text_format":"1","workbook":"xlsx","n_sheets":3,"sheets":["Sheet1","Sheet2","Sheet3"],"not_rendered":{"charts":0,"images":0,"macros":0,"external_links":0,"defined_names":1,"comments":0,"pivot_tables":0},"unopened":[],"bounds":{"document_bytes":16777216,"sheet_cells":100000,"rows_first":2000,"rows_last":500,"rows_between":2000,"halvings":0,"cell_chars":16384,"cell_head_chars":4096},"cells_cut":0,"cells_raw":0,"read":"whole","date_system":"1900"}

{"sheet":"Sheet1","index":0,"n_rows":27,"n_cols":40,"rows_kept":27,"cut":false,"hidden":false,"merged":[[0,38,1,38],[0,39,1,39],[0,0,1,1],[0,20,0,22],[0,23,0,25],[0,26,0,28],[0,29,0,31],[0,32,0,34],[0,35,0,37],[0,2,0,4],[0,5,0,7],[0,8,0,10],[0,11,0,13],[0,14,0,16],[0,17,0,19]]}
[null,null,"January",null,null,"February",null,null,"March",null,null,"April",null,null,"May",null,null,"June",null,null,"July",null,null,"August",null,null,"September",null,null,"October",null,null,"November",null,null,"December",null,null,"Total Number of Individuals Assisted Who Found Jobs","Total Number of Reemployment Assistance Claimants Assisted Who Found Jobs"]
[null,null,"Total Number of Individuals Assisted Who Found Jobs","Number of Reemployment Assistance Claimants Assisted Who Found Jobs","Monthly  Composite Ranking","Total Number of Individuals Assisted Who Found Jobs","Number of Reemployment Assistance Claimants Assisted Who Found Jobs","Monthly  Composite Ranking","Total Number of Individuals Assisted Who Found Jobs","Number of Reemployment Assistance Claimants Assisted Who Found Jobs","Monthly  Composite Ranking","Total Number of Individuals Assisted Who Found Jobs","Number of Reemployment Assistance Claimants Assisted Who Found Jobs","Monthly  Composite Ranking","Total Number of Individuals Assisted Who Found Jobs","Number of Reemployment Assistance Claimants Assisted Who Found Jobs","Monthly  Composite Ranking","Total Number of Individuals Assisted Who Found Jobs","Number of Reemployment Assistance Claimants Assisted Who Found Jobs","Monthly  Composite Ranking","Total Number of Individuals Assisted Who Found Jobs","Number of Reemployment Assistance Claimants Assisted Who Found Jobs","Monthly  Composite Ranking","Total Number of Individuals Assisted Who Found Jobs","Number of Reemployment Assistance Claimants Assisted Who Found Jobs","Monthly  Composite Ranking","Total Number of Individuals Assisted Who Found Jobs","Number of Reemployment Assistance Claimants Assisted Who Found Jobs","Monthly  Composite Ranking","Total Number of Individuals Assisted Who Found Jobs","Number of Reemployment Assistance Claimants Assisted Who Found Jobs","Monthly  Composite Ranking","Total Number of Individuals Assisted Who Found Jobs","Number of Reemployment Assistance Claimants Assisted Who Found Jobs","Monthly  Composite Ranking","Total Number of Individuals Assisted Who Found Jobs","Number of Reemployment Assistance Claimants Assisted Who Found Jobs","Monthly  Composite Ranking"]
[1,"CareerSource Escarosa",572,104,21,618,111,23,630,134,20,null,null,null,null,null,null,null,null,null,null,null,null,null,null,null,null,null,null,null,null,null,null,null,null,null,null,null,{"$f":"(AJ3+AG3+AD3+AA3+X3+U3+R3+O3+L3+I3+F3+C3)","v":1820},{"$f":"(AK3+AH3+AE3+AB3+Y3+V3+S3+P3+M3+J3+G3+D3)","v":349}]
[2,"CareerSource Okaloosa Walton",433,69,13,529,103,9,572,116,8,null,null,null,null,null,null,null,null,null,null,null,null,null,null,null,null,null,null,null,null,null,null,null,null,null,null,null,{"$f":"(AJ4+AG4+AD4+AA4+X4+U4+R4+O4+L4+I4+F4+C4)","v":1534},{"$f":"(AK4+AH4+AE4+AB4+Y4+V4+S4+P4+M4+J4+G4+D4)","v":288}]
[3,"CareerSource Chipola",223,24,10,229,28,10,267,23,9,null,null,null,null,null,null,null,null,null,null,null,null,null,null,null,null,null,null,null,null,null,null,null,null,null,null,null,{"$f":"(AJ5+AG5+AD5+AA5+X5+U5+R5+O5+L5+I5+F5+C5)","v":719},75]
[4,"CareerSource Gulf Coast",716,98,1,884,150,1,764,166,1,null,null,null,null,null,null,null,null,null,null,null,null,null,null,null,null,null,null,null,null,null,null,null,null,null,null,null,2364,414]
[5,"CareerSource Capital Region",564,77,18,675,94,16,650,97,15,null,null,null,null,null,null,null,null,null,null,null,null,null,null,null,null,null,null,null,null,null,null,null,null,null,null,null,1889,268]
[6,"CareerSource North Florida",221,33,8,268,50,3,385,41,2,null,null,null,null,null,null,null,null,null,null,null,null,null,null,null,null,null,null,null,null,null,null,null,null,null,null,null,874,124]
[7,"CareerSource Florida Crown",259,37,4,264,32,6,316,40,4,null,null,null,null,null,null,null,null,null,null,null,null,null,null,null,null,null,null,null,null,null,null,null,null,null,null,null,839,109]
[8,"CareerSource Northeast Florida",1490,387,24,1659,470,24,1873,509,23,null,null,null,null,null,null,null,null,null,null,null,null,null,null,null,null,null,null,null,null,null,null,null,null,null,null,null,5022,1366]
[9,"CareerSource North Central Florida",610,62,11,615,62,13,608,68,12,null,null,null,null,null,null,null,null,null,null,null,null,null,null,null,null,null,null,null,null,null,null,null,null,null,null,null,1833,192]
[10,"CareerSource Citrus Levy Marion",784,126,15,952,142,14,919,148,13,null,null,null,null,null,null,null,null,null,null,null,null,null,null,null,null,null,null,null,null,null,null,null,null,null,null,null,2655,416]
[11,"CareerSource Flagler  Volusia",1383,264,5,1432,307,5,1477,275,7,null,null,null,null,null,null,null,null,null,null,null,null,null,null,null,null,null,null,null,null,null,null,null,null,null,null,null,4292,846]
[12,"CareerSource Central Florida",2693,736,22,3387,916,19,3103,827,22,null,null,null,null,null,null,null,null,null,null,null,null,null,null,null,null,null,null,null,null,null,null,null,null,null,null,null,9183,2479]
[13,"CareerSource Brevard",1079,187,12,1182,222,11,1313,224,10,null,null,null,null,null,null,null,null,null,null,null,null,null,null,null,null,null,null,null,null,null,null,null,null,null,null,null,3574,633]
[14,"CareerSource Pinellas",2367,325,3,2358,406,4,2653,376,5,null,null,null,null,null,null,null,null,null,null,null,null,null,null,null,null,null,null,null,null,null,null,null,null,null,null,null,7378,1107]
[15,"CareerSource Tampa Bay",3567,525,2,3686,537,2,4667,544,3,null,null,null,null,null,null,null,null,null,null,null,null,null,null,null,null,null,null,null,null,null,null,null,null,null,null,null,11920,1606]
[16,"CareerSource Pasco Hernando",1234,209,6,1264,238,7,1378,293,6,null,null,null,null,null,null,null,null,null,null,null,null,null,null,null,null,null,null,null,null,null,null,null,null,null,null,null,3876,740]
[17,"CareerSource Polk",969,174,16,1068,202,15,977,163,17,null,null,null,null,null,null,null,null,null,null,null,null,null,null,null,null,null,null,null,null,null,null,null,null,null,null,null,3014,539]
[18,"CareerSource Suncoast",1146,151,14,1085,208,17,1046,188,16,null,null,null,null,null,null,null,null,null,null,null,null,null,null,null,null,null,null,null,null,null,null,null,null,null,null,null,3277,547]
[19,"CareerSource Heartland",346,29,9,351,28,12,306,31,14,null,null,null,null,null,null,null,null,null,null,null,null,null,null,null,null,null,null,null,null,null,null,null,null,null,null,null,1003,88]
[20,"CareerSource Research Coast",913,182,17,944,184,18,846,201,19,null,null,null,null,null,null,null,null,null,null,null,null,null,null,null,null,null,null,null,null,null,null,null,null,null,null,null,2703,567]
[21,"CareerSource Palm Beach County",1464,382,23,1689,513,21,1700,482,21,null,null,null,null,null,null,null,null,null,null,null,null,null,null,null,null,null,null,null,null,null,null,null,null,null,null,null,4853,1377]
[22,"CareerSource Broward",2689,529,19,2940,639,20,2811,662,18,null,null,null,null,null,null,null,null,null,null,null,null,null,null,null,null,null,null,null,null,null,null,null,null,null,null,null,8440,1830]
[23,"CareerSource South Florida",6248,849,7,6299,1013,8,6704,942,11,null,null,null,null,null,null,null,null,null,null,null,null,null,null,null,null,null,null,null,null,null,null,null,null,null,null,null,19251,2804]
[24,"CareerSource Southwest Florida",1591,240,20,1596,289,22,1492,244,24,null,null,null,null,null,null,null,null,null,null,null,null,null,null,null,null,null,null,null,null,null,null,null,null,null,null,null,{"$f":"(AJ26+AG26+AD26+AA26+X26+U26+R26+O26+L26+I26+F26+C26)","v":4679},773]
[null,null,{"$f":"SUM(C3:C26)","v":33561},{"$f":"SUM(D3:D26)","v":5799},null,{"$f":"SUM(F3:F26)","v":35974},{"$f":"SUM(G3:G26)","v":6944},null,{"$f":"SUM(I3:I26)","v":37457},{"$f":"SUM(J3:J26)","v":6794},null,{"$f":"SUM(L3:L26)","v":0},{"$f":"SUM(M3:M26)","v":0},null,{"$f":"SUM(O3:O26)","v":0},{"$f":"SUM(P3:P26)","v":0},null,{"$f":"SUM(R3:R26)","v":0},{"$f":"SUM(S3:S26)","v":0},null,{"$f":"SUM(U3:U26)","v":0},{"$f":"SUM(V3:V26)","v":0},null,{"$f":"SUM(X3:X26)","v":0},{"$f":"SUM(Y3:Y26)","v":0},null,{"$f":"SUM(AA3:AA26)","v":0},{"$f":"SUM(AB3:AB26)","v":0},null,{"$f":"SUM(AD3:AD26)","v":0},{"$f":"SUM(AE3:AE26)","v":0},null,{"$f":"SUM(AG3:AG26)","v":0},{"$f":"SUM(AH3:AH26)","v":0},null,{"$f":"SUM(AJ3:AJ26)","v":0},{"$f":"SUM(AK3:AK26)","v":0},null,{"$f":"SUM(AM3:AM26)","v":106992},{"$f":"SUM(AN3:AN26)","v":19537}]

{"sheet":"Sheet2","index":1,"n_rows":28,"n_cols":10,"rows_kept":28,"cut":false,"hidden":false,"merged":[[0,0,1,1],[0,2,0,4]]}
[null,null,"January"]
[null,null,"Total Number of Individuals Assisted Who Found Jobs","Number of Reemployment Assistance Claimants Assisted Who Found Jobs","Monthly  Composite Ranking",null,null,"# of Individuals Placed in Jobs  in February 2015","# of RA Claimants Placed into Jobs in February 2015","monthly ranking"]
[1,"CareerSource Escarosa",572,104,21,null,null,618,111,23]
[2,"CareerSource Okaloosa Walton",433,69,13,null,null,529,103,9]
[3,"CareerSource Chipola",223,24,10,null,null,229,28,10]
[4,"CareerSource Gulf Coast",716,98,1,null,null,884,150,1]
[5,"CareerSource Capital Region",564,77,18,null,null,675,94,16]
[6,"CareerSource North Florida",221,33,8,null,null,268,50,3]
[7,"CareerSource Florida Crown",259,37,4,null,null,264,32,6]
[8,"CareerSource Northeast Florida",1490,387,24,null,null,1659,470,24]
[9,"CareerSource North Central Florida",610,62,11,null,null,615,62,13]
[10,"CareerSource Citrus Levy Marion",784,126,15,null,null,952,142,14]
[11,"CareerSource Flagler  Volusia",1383,264,5,null,null,1432,307,5]
[12,"CareerSource Central Florida",2693,736,22,null,null,3387,916,19]
[13,"CareerSource Brevard",1079,187,12,null,null,1182,222,11]
[14,"CareerSource Pinellas",2367,325,3,null,null,2358,406,4]
[15,"CareerSource Tampa Bay",3567,525,2,null,null,3686,537,2]
[16,"CareerSource Pasco Hernando",1234,209,6,null,null,1264,238,7]
[17,"CareerSource Polk",969,174,16,null,null,1068,202,15]
[18,"CareerSource Suncoast",1146,151,14,null,null,1085,208,17]
[19,"CareerSource Heartland",346,29,9,null,null,351,28,12]
[20,"CareerSource Research Coast",913,182,17,null,null,944,184,18]
[21,"CareerSource Palm Beach County",1464,382,23,null,null,1689,513,21]
[22,"CareerSource Broward",2689,529,19,null,null,2940,639,20]
[23,"CareerSource South Florida",6248,849,7,null,null,6299,1013,8]
[24,"CareerSource Southwest Florida",1591,240,20,null,null,1596,289,22]
[null,null,{"$f":"SUM(C3:C26)","v":33561},{"$f":"SUM(D3:D26)","v":5799}]
[null,null,null,null,null,null,null,35974,6944]

{"sheet":"Sheet3","index":2,"n_rows":0,"n_cols":0,"rows_kept":0,"cut":false,"hidden":false,"merged":[]}